[Event "Late-Titled-Tuesday-Blitz-February-06-2024"]
[Site "Chess.com"]
[Date "2024.02.06"]
[Round "3"]
[White "JonasGallasch"]
[Black "FairChess_on_YouTube"]
[Result "0-1"]
[WhiteElo "2382"]
[BlackElo "3045"]
[TimeControl "180+1"]
[EndTime "14:26:47 PST"]
[Termination "FairChess_on_YouTube won by resignation"]

1. d4 {[%clk 0:03:00.9]} 1... Nf6 {[%clk 0:03:00.5]} 2. c4 {[%clk 0:03:00.7]}
2... g6 {[%clk 0:03:01.1]} 3. Nf3 {[%clk 0:02:57.9]} 3... Bg7 {[%clk 0:03:01.5]}
4. g3 {[%clk 0:02:58.5]} 4... b6 {[%clk 0:03:00.7]} 5. Bg2 {[%clk 0:02:58.6]}
5... Bb7 {[%clk 0:03:01.3]} 6. O-O {[%clk 0:02:58.9]} 6... O-O {[%clk
0:03:01.3]} 7. Nc3 {[%clk 0:02:58.1]} 7... Ne4 {[%clk 0:03:01.1]} 8. Nxe4 {[%clk
0:02:56]} 8... Bxe4 {[%clk 0:03:02]} 9. Nh4 {[%clk 0:02:56.5]} 9... Bxg2 {[%clk
0:03:00.7]} 10. Nxg2 {[%clk 0:02:57.4]} 10... d5 {[%clk 0:03:00.8]} 11. cxd5
{[%clk 0:02:56.3]} 11... Qxd5 {[%clk 0:03:01.7]} 12. Be3 {[%clk 0:02:55.8]}
12... Nc6 {[%clk 0:02:56.1]} 13. Rc1 {[%clk 0:02:45.7]} 13... Nxd4 {[%clk
0:02:40]} 14. Bxd4 {[%clk 0:02:39.6]} 14... Qxd4 {[%clk 0:02:37.2]} 15. Qxd4
{[%clk 0:02:39.5]} 15... Bxd4 {[%clk 0:02:38.1]} 16. Rxc7 {[%clk 0:02:39.8]}
16... Bxb2 {[%clk 0:02:35.3]} 17. Rxe7 {[%clk 0:02:38.1]} 17... Rfe8 {[%clk
0:02:30.6]} 18. Rxe8+ {[%clk 0:02:37]} 18... Rxe8 {[%clk 0:02:31.5]} 19. e3
{[%clk 0:02:36.9]} 19... Rc8 {[%clk 0:02:31.2]} 20. Rb1 {[%clk 0:02:35.7]} 20...
Be5 {[%clk 0:02:25.3]} 21. Ne1 {[%clk 0:02:34.4]} 21... Rc3 {[%clk 0:02:24.5]}
22. Kf1 {[%clk 0:02:31.2]} 22... Ra3 {[%clk 0:02:24.2]} 23. Nc2 {[%clk 0:02:18]}
23... Rxa2 {[%clk 0:02:22.7]} 24. Nb4 {[%clk 0:02:18.7]} 24... Ra1 {[%clk
0:02:19.7]} 25. Rxa1 {[%clk 0:02:16.6]} 25... Bxa1 {[%clk 0:02:20.6]} 26. Na6
{[%clk 0:02:17.2]} 26... f5 {[%clk 0:02:19.1]} 27. Ke2 {[%clk 0:02:17.5]} 27...
Kf7 {[%clk 0:02:19.7]} 28. Kd3 {[%clk 0:02:18.1]} 28... Ke6 {[%clk 0:02:19.8]}
29. Kc4 {[%clk 0:02:18.8]} 29... Ke5 {[%clk 0:02:17.8]} 30. f3 {[%clk
0:02:15.3]} 30... Kd6 {[%clk 0:02:14.8]} 31. Kb5 {[%clk 0:02:12.2]} 31... Bc3
{[%clk 0:02:12]} 32. Nb8 {[%clk 0:02:10.8]} 32... Bd2 {[%clk 0:02:11.2]} 33. e4
{[%clk 0:02:08.5]} 33... fxe4 {[%clk 0:02:10.1]} 34. fxe4 {[%clk 0:02:09.4]}
34... Be3 {[%clk 0:02:07.6]} 35. h3 {[%clk 0:01:57.7]} 35... h5 {[%clk
0:02:05.1]} 36. g4 {[%clk 0:01:57.1]} 36... h4 {[%clk 0:02:04.5]} 37. e5+ {[%clk
0:01:42.5]} 37... Kxe5 {[%clk 0:02:03.8]} 38. Nc6+ {[%clk 0:01:43.4]} 38... Kf4
{[%clk 0:02:04.3]} 39. Ne7 {[%clk 0:01:43.7]} 39... g5 {[%clk 0:02:03]} 40. Nd5+
{[%clk 0:01:40.8]} 40... Kf3 {[%clk 0:02:01.7]} 41. Ka6 {[%clk 0:01:38.8]} 41...
Bc1 {[%clk 0:02:00.2]} 42. Kxa7 {[%clk 0:01:35.5]} 42... Kg3 {[%clk 0:02:00.5]}
43. Kxb6 {[%clk 0:01:27.1]} 43... Kxh3 {[%clk 0:02:01.4]} 44. Nf6 {[%clk
0:01:26]} 44... Kg2 {[%clk 0:02:01.2]} 45. Kc5 {[%clk 0:01:24.7]} 45... h3
{[%clk 0:02:02.1]} 46. Kd4 {[%clk 0:01:21.8]} 46... h2 {[%clk 0:02:03]} 0-1

[Event "Late-Titled-Tuesday-Blitz-February-06-2024"]
[Site "Chess.com"]
[Date "2024.02.06"]
[Round "3"]
[White "nikitadovbnya2008"]
[Black "Angry_Twin"]
[Result "0-1"]
[WhiteElo "2357"]
[BlackElo "3089"]
[TimeControl "180+1"]
[EndTime "14:26:49 PST"]
[Termination "Angry_Twin won by checkmate"]

1. d4 {[%clk 0:03:00.9]} 1... Nf6 {[%clk 0:02:56.4]} 2. c4 {[%clk 0:03:01.4]}
2... e6 {[%clk 0:02:57.1]} 3. Nc3 {[%clk 0:03:01.9]} 3... Bb4 {[%clk 0:02:57.2]}
4. f3 {[%clk 0:03:02.2]} 4... d5 {[%clk 0:02:54.7]} 5. a3 {[%clk 0:03:01.7]}
5... Be7 {[%clk 0:02:55]} 6. e4 {[%clk 0:02:59.5]} 6... dxc4 {[%clk 0:02:53.2]}
7. Bxc4 {[%clk 0:02:55.8]} 7... c5 {[%clk 0:02:53.5]} 8. d5 {[%clk 0:02:53.7]}
8... exd5 {[%clk 0:02:52.4]} 9. exd5 {[%clk 0:02:53.9]} 9... O-O {[%clk
0:02:50.8]} 10. Bf4 {[%clk 0:02:53.6]} 10... Bd6 {[%clk 0:02:50.8]} 11. Bg5
{[%clk 0:02:46.8]} 11... h6 {[%clk 0:02:41.4]} 12. Bh4 {[%clk 0:02:41.8]} 12...
Nbd7 {[%clk 0:02:41.2]} 13. Nb5 {[%clk 0:02:39.4]} 13... Be5 {[%clk 0:02:39.9]}
14. Ne2 {[%clk 0:02:24.6]} 14... a6 {[%clk 0:02:36.4]} 15. Nbc3 {[%clk
0:02:23.8]} 15... b5 {[%clk 0:02:36.8]} 16. Ba2 {[%clk 0:02:19.3]} 16... Qc7
{[%clk 0:02:32.1]} 17. Rc1 {[%clk 0:02:15]} 17... Re8 {[%clk 0:02:28]} 18. Bg3
{[%clk 0:02:10.9]} 18... Bxg3+ {[%clk 0:02:27]} 19. hxg3 {[%clk 0:02:11.8]}
19... Qxg3+ {[%clk 0:02:27.5]} 20. Kf1 {[%clk 0:02:11.1]} 20... Qe5 {[%clk
0:02:25.5]} 21. Qd2 {[%clk 0:01:59.1]} 21... Bb7 {[%clk 0:02:23.7]} 22. Rd1
{[%clk 0:01:57.5]} 22... Rad8 {[%clk 0:02:23.6]} 23. Rh4 {[%clk 0:01:54.4]}
23... Nb6 {[%clk 0:02:20.5]} 24. d6 {[%clk 0:01:37.2]} 24... c4 {[%clk
0:02:10.8]} 25. Bb1 {[%clk 0:01:35.4]} 25... Nbd7 {[%clk 0:02:04.8]} 26. Kf2
{[%clk 0:01:23.9]} 26... Nc5 {[%clk 0:02:05.1]} 27. Ng3 {[%clk 0:01:01.7]} 27...
Nb3 {[%clk 0:01:52.6]} 28. Qc2 {[%clk 0:00:50.4]} 28... Rxd6 {[%clk 0:01:43.4]}
29. Rxd6 {[%clk 0:00:49.2]} 29... Qe1# {[%clk 0:01:42.6]} 0-1

[Event "Late-Titled-Tuesday-Blitz-February-06-2024"]
[Site "Chess.com"]
[Date "2024.02.06"]
[Round "3"]
[White "MeisterJabo"]
[Black "Arteler"]
[Result "0-1"]
[WhiteElo "2326"]
[BlackElo "2504"]
[TimeControl "180+1"]
[EndTime "14:27:00 PST"]
[Termination "Arteler won by resignation"]

1. c4 {[%clk 0:03:00]} 1... c6 {[%clk 0:02:59.9]} 2. g3 {[%clk 0:03:00.9]} 2...
d5 {[%clk 0:03:00.8]} 3. Bg2 {[%clk 0:03:01.3]} 3... Nf6 {[%clk 0:03:01.5]} 4.
Nf3 {[%clk 0:03:01.7]} 4... a6 {[%clk 0:03:01.5]} 5. b3 {[%clk 0:02:58.2]} 5...
Bf5 {[%clk 0:03:02]} 6. O-O {[%clk 0:02:57.7]} 6... Nbd7 {[%clk 0:03:02.6]} 7.
d4 {[%clk 0:02:57]} 7... e6 {[%clk 0:03:02.8]} 8. Nc3 {[%clk 0:02:56.3]} 8...
Be7 {[%clk 0:03:02.2]} 9. Bb2 {[%clk 0:02:52.9]} 9... b5 {[%clk 0:03:01.5]} 10.
Nh4 {[%clk 0:02:29.3]} 10... Bg4 {[%clk 0:03:00.5]} 11. Qc2 {[%clk 0:02:08.9]}
11... O-O {[%clk 0:02:58.6]} 12. f3 {[%clk 0:01:55.5]} 12... Bh5 {[%clk
0:02:57]} 13. e4 {[%clk 0:01:52.8]} 13... bxc4 {[%clk 0:02:54.5]} 14. bxc4
{[%clk 0:01:52.1]} 14... dxe4 {[%clk 0:02:47.3]} 15. Nxe4 {[%clk 0:01:46.7]}
15... Nxe4 {[%clk 0:02:42.5]} 16. Qxe4 {[%clk 0:01:47.6]} 16... Bxh4 {[%clk
0:02:42.7]} 17. Qxh4 {[%clk 0:01:47.7]} 17... Qxh4 {[%clk 0:02:41.1]} 18. gxh4
{[%clk 0:01:48.6]} 18... Rab8 {[%clk 0:02:40.3]} 19. Ba3 {[%clk 0:01:44.1]}
19... c5 {[%clk 0:02:39.9]} 20. Rab1 {[%clk 0:01:18]} 20... h6 {[%clk
0:02:39.9]} 21. dxc5 {[%clk 0:01:07.5]} 21... Rxb1 {[%clk 0:02:39.5]} 22. Rxb1
{[%clk 0:01:08.4]} 22... Rc8 {[%clk 0:02:40.1]} 23. f4 {[%clk 0:00:50.2]} 23...
Nxc5 {[%clk 0:02:39.9]} 24. Rb6 {[%clk 0:00:47.4]} 24... Nd3 {[%clk 0:02:35.7]}
25. Rxa6 {[%clk 0:00:36.9]} 25... Rxc4 {[%clk 0:02:30.7]} 26. Bf1 {[%clk
0:00:31.6]} 26... Rd4 {[%clk 0:02:30.8]} 27. Ra8+ {[%clk 0:00:26.9]} 27... Kh7
{[%clk 0:02:30.7]} 28. f5 {[%clk 0:00:22]} 28... Rg4+ {[%clk 0:02:23.9]} 29. Bg2
{[%clk 0:00:18.6]} 29... Nf4 {[%clk 0:02:24.4]} 30. h3 {[%clk 0:00:12.8]} 30...
Rxg2+ {[%clk 0:02:24.6]} 31. Kf1 {[%clk 0:00:13.7]} 31... Rxa2 {[%clk
0:02:22.4]} 32. fxe6 {[%clk 0:00:11.2]} 32... Nxe6 {[%clk 0:02:22.5]} 33. Ra7
{[%clk 0:00:10.8]} 0-1

[Event "Late-Titled-Tuesday-Blitz-February-06-2024"]
[Site "Chess.com"]
[Date "2024.02.06"]
[Round "3"]
[White "Alina_Gumerovna"]
[Black "KorolDimitriy75"]
[Result "0-1"]
[WhiteElo "2094"]
[BlackElo "2372"]
[TimeControl "180+1"]
[EndTime "14:27:03 PST"]
[Termination "KorolDimitriy75 won by checkmate"]

1. e4 {[%clk 0:02:59.9]} 1... c5 {[%clk 0:03:00.2]} 2. Nf3 {[%clk 0:03:00.2]}
2... d6 {[%clk 0:03:00.6]} 3. d4 {[%clk 0:03:00.8]} 3... cxd4 {[%clk 0:03:01.5]}
4. Nxd4 {[%clk 0:03:01.7]} 4... Nf6 {[%clk 0:03:01.4]} 5. Nc3 {[%clk 0:03:02.2]}
5... g6 {[%clk 0:03:02]} 6. f3 {[%clk 0:03:02.7]} 6... Bg7 {[%clk 0:03:02.2]} 7.
Be3 {[%clk 0:03:03.3]} 7... O-O {[%clk 0:03:03]} 8. Qd2 {[%clk 0:03:04]} 8...
Nc6 {[%clk 0:03:03.5]} 9. O-O-O {[%clk 0:03:04.7]} 9... d5 {[%clk 0:03:03.8]}
10. Nxc6 {[%clk 0:03:03.4]} 10... bxc6 {[%clk 0:03:03.7]} 11. exd5 {[%clk
0:03:04]} 11... Nxd5 {[%clk 0:03:04.3]} 12. Nxd5 {[%clk 0:03:01.8]} 12... cxd5
{[%clk 0:03:05.2]} 13. Bd4 {[%clk 0:02:52.1]} 13... e5 {[%clk 0:03:04.2]} 14.
Bc5 {[%clk 0:02:52.8]} 14... Be6 {[%clk 0:03:03.9]} 15. Bxf8 {[%clk 0:02:49.1]}
15... Qxf8 {[%clk 0:03:04.8]} 16. Kb1 {[%clk 0:02:43]} 16... Rb8 {[%clk
0:03:02.8]} 17. Bd3 {[%clk 0:02:20.1]} 17... e4 {[%clk 0:03:02.4]} 18. c3 {[%clk
0:01:45.4]} 18... exd3 {[%clk 0:02:30.2]} 19. g4 {[%clk 0:01:44.7]} 19... Qa3
{[%clk 0:02:24.4]} 20. Ka1 {[%clk 0:00:11.6]} 20... Rxb2 {[%clk 0:02:19.4]} 21.
Qxb2 {[%clk 0:00:03.6]} 21... Bxc3 {[%clk 0:02:18.2]} 22. Rb1 {[%clk 0:00:04.1]}
22... d4 {[%clk 0:02:02.7]} 23. Rhd1 {[%clk 0:00:02.4]} 23... Qxa2# {[%clk
0:02:02]} 0-1

[Event "Late-Titled-Tuesday-Blitz-February-06-2024"]
[Site "Chess.com"]
[Date "2024.02.06"]
[Round "3"]
[White "pinguino120"]
[Black "jup1978"]
[Result "0-1"]
[WhiteElo "2269"]
[BlackElo "2514"]
[TimeControl "180+1"]
[EndTime "14:27:07 PST"]
[Termination "jup1978 won by resignation"]

1. e4 {[%clk 0:02:59.6]} 1... c6 {[%clk 0:02:58.4]} 2. d4 {[%clk 0:02:57.2]}
2... d5 {[%clk 0:02:59.3]} 3. exd5 {[%clk 0:02:54.1]} 3... cxd5 {[%clk
0:03:00.2]} 4. Bd3 {[%clk 0:02:53]} 4... Nc6 {[%clk 0:02:59.4]} 5. c3 {[%clk
0:02:43.7]} 5... Nf6 {[%clk 0:02:57.9]} 6. Bf4 {[%clk 0:02:43.1]} 6... Bg4
{[%clk 0:02:57.1]} 7. Qb3 {[%clk 0:02:41.2]} 7... Qd7 {[%clk 0:02:56.9]} 8. Nd2
{[%clk 0:02:39.8]} 8... e6 {[%clk 0:02:57.2]} 9. Ngf3 {[%clk 0:02:39.7]} 9...
Bxf3 {[%clk 0:02:57.3]} 10. Nxf3 {[%clk 0:02:39.5]} 10... Bd6 {[%clk 0:02:58.2]}
11. Bxd6 {[%clk 0:02:37.1]} 11... Qxd6 {[%clk 0:02:59.1]} 12. O-O {[%clk
0:02:36.9]} 12... O-O {[%clk 0:02:57.2]} 13. Rae1 {[%clk 0:02:36]} 13... Rab8
{[%clk 0:02:56]} 14. Ne5 {[%clk 0:02:29.6]} 14... Rfc8 {[%clk 0:02:55.1]} 15. a4
{[%clk 0:02:29.1]} 15... Na5 {[%clk 0:02:53.2]} 16. Qc2 {[%clk 0:02:26.4]} 16...
Nc4 {[%clk 0:02:48.7]} 17. Bxc4 {[%clk 0:02:10.7]} 17... dxc4 {[%clk 0:02:49.6]}
18. f4 {[%clk 0:02:10]} 18... b5 {[%clk 0:02:46]} 19. a5 {[%clk 0:02:07.6]}
19... b4 {[%clk 0:02:43.4]} 20. f5 {[%clk 0:02:06.5]} 20... bxc3 {[%clk
0:02:34.1]} 21. bxc3 {[%clk 0:02:07.4]} 21... Rb3 {[%clk 0:02:29.9]} 22. Nxc4
{[%clk 0:01:57.9]} 22... Qb8 {[%clk 0:02:14.3]} 23. Nb6 {[%clk 0:01:42.8]} 23...
Rbxc3 {[%clk 0:02:07.7]} 24. Qe2 {[%clk 0:01:33.4]} 24... axb6 {[%clk
0:02:03.5]} 25. fxe6 {[%clk 0:01:33.3]} 25... R3c7 {[%clk 0:01:47.6]} 26. e7
{[%clk 0:01:22.6]} 26... Re8 {[%clk 0:01:43.4]} 27. Rxf6 {[%clk 0:01:21.8]}
27... gxf6 {[%clk 0:01:43]} 28. Qg4+ {[%clk 0:01:21.1]} 28... Kh8 {[%clk
0:01:42]} 29. Qf5 {[%clk 0:01:18.9]} 29... Rc6 {[%clk 0:01:38.1]} 30. Re3 {[%clk
0:01:11.9]} 30... Qd6 {[%clk 0:01:37.3]} 31. d5 {[%clk 0:01:01.5]} 31... Rc1+
{[%clk 0:01:33.9]} 32. Kf2 {[%clk 0:01:01.4]} 32... Rxe7 {[%clk 0:01:33.6]} 33.
axb6 {[%clk 0:00:56.5]} 33... Rxe3 {[%clk 0:01:27.6]} 34. Kxe3 {[%clk
0:00:57.4]} 34... Qxb6+ {[%clk 0:01:26.4]} 0-1

[Event "Late-Titled-Tuesday-Blitz-February-06-2024"]
[Site "Chess.com"]
[Date "2024.02.06"]
[Round "3"]
[White "OverallStranger"]
[Black "koncheto"]
[Result "1-0"]
[WhiteElo "2281"]
[BlackElo "2497"]
[TimeControl "180+1"]
[EndTime "14:27:09 PST"]
[Termination "OverallStranger won by resignation"]

1. e4 {[%clk 0:02:57.7]} 1... e5 {[%clk 0:02:50.1]} 2. Nf3 {[%clk 0:02:57.5]}
2... Nf6 {[%clk 0:02:51]} 3. Nc3 {[%clk 0:02:54.5]} 3... Nc6 {[%clk 0:02:51.3]}
4. g3 {[%clk 0:02:53.2]} 4... d5 {[%clk 0:02:50.4]} 5. exd5 {[%clk 0:02:51.9]}
5... Nxd5 {[%clk 0:02:51.3]} 6. Bg2 {[%clk 0:02:52.3]} 6... Be6 {[%clk
0:02:49.9]} 7. O-O {[%clk 0:02:51.9]} 7... Be7 {[%clk 0:02:50.4]} 8. Re1 {[%clk
0:02:51.8]} 8... f6 {[%clk 0:02:47]} 9. d4 {[%clk 0:02:51.9]} 9... exd4 {[%clk
0:02:45.3]} 10. Nxd4 {[%clk 0:02:27.7]} 10... Nxc3 {[%clk 0:02:27.7]} 11. bxc3
{[%clk 0:02:24.7]} 11... Nxd4 {[%clk 0:02:18.1]} 12. cxd4 {[%clk 0:02:23.1]}
12... Qd7 {[%clk 0:01:59.6]} 13. Qe2 {[%clk 0:02:19.1]} 13... Kf7 {[%clk
0:01:59.2]} 14. d5 {[%clk 0:01:24.1]} 14... Bg4 {[%clk 0:01:37]} 15. Qc4 {[%clk
0:01:20.9]} 15... Bd6 {[%clk 0:01:08.9]} 16. Bf4 {[%clk 0:01:08]} 16... Bxf4
{[%clk 0:01:07]} 17. d6+ {[%clk 0:01:03]} 17... Be6 {[%clk 0:00:59.3]} 18. Rxe6
{[%clk 0:01:02.6]} 1-0

[Event "Late-Titled-Tuesday-Blitz-February-06-2024"]
[Site "Chess.com"]
[Date "2024.02.06"]
[Round "3"]
[White "ninguno46"]
[Black "Iuckyducky"]
[Result "1-0"]
[WhiteElo "2520"]
[BlackElo "2270"]
[TimeControl "180+1"]
[EndTime "14:27:11 PST"]
[Termination "ninguno46 won by resignation"]

1. e4 {[%clk 0:03:00.9]} 1... c5 {[%clk 0:01:55.1]} 2. Nc3 {[%clk 0:02:59.8]}
2... Nc6 {[%clk 0:01:36]} 3. f4 {[%clk 0:02:59.1]} 3... g6 {[%clk 0:01:30]} 4.
Nf3 {[%clk 0:02:58.4]} 4... Bg7 {[%clk 0:01:30.6]} 5. Bb5 {[%clk 0:02:58.5]}
5... Nd4 {[%clk 0:01:30.2]} 6. O-O {[%clk 0:02:57.3]} 6... a6 {[%clk 0:01:22.5]}
7. Bd3 {[%clk 0:02:56.3]} 7... Nf6 {[%clk 0:01:21]} 8. Nxd4 {[%clk 0:02:41.2]}
8... cxd4 {[%clk 0:01:21.9]} 9. Ne2 {[%clk 0:02:41.4]} 9... d6 {[%clk
0:01:11.8]} 10. b3 {[%clk 0:02:39.7]} 10... O-O {[%clk 0:01:10.8]} 11. Bb2
{[%clk 0:02:37.9]} 11... e5 {[%clk 0:01:09.5]} 12. c3 {[%clk 0:02:26.6]} 12...
dxc3 {[%clk 0:01:06.8]} 13. Nxc3 {[%clk 0:02:26.1]} 13... Qb6+ {[%clk
0:00:59.3]} 14. Kh1 {[%clk 0:02:25.4]} 14... Bg4 {[%clk 0:00:59.5]} 15. Be2
{[%clk 0:02:23.8]} 15... Bxe2 {[%clk 0:00:49]} 16. Qxe2 {[%clk 0:02:24.7]} 16...
exf4 {[%clk 0:00:49.4]} 17. Rxf4 {[%clk 0:02:22.7]} 17... Rae8 {[%clk
0:00:49.9]} 18. Rxf6 {[%clk 0:02:08.1]} 18... Bxf6 {[%clk 0:00:39.6]} 19. Nd5
{[%clk 0:02:07.5]} 19... Bxb2 {[%clk 0:00:40.1]} 20. Nxb6 {[%clk 0:02:07.3]}
20... Bxa1 {[%clk 0:00:40.6]} 21. Nd7 {[%clk 0:02:03.4]} 21... Rc8 {[%clk
0:00:39.9]} 22. g3 {[%clk 0:01:59.9]} 22... Rc1+ {[%clk 0:00:22.1]} 23. Kg2
{[%clk 0:01:59.3]} 23... Rfc8 {[%clk 0:00:23]} 24. Nb6 {[%clk 0:01:51.8]} 24...
R8c2 {[%clk 0:00:22.3]} 25. Nd5 {[%clk 0:01:50]} 25... Bc3 {[%clk 0:00:19.5]}
26. Nxc3 {[%clk 0:01:46.7]} 1-0

[Event "Late-Titled-Tuesday-Blitz-February-06-2024"]
[Site "Chess.com"]
[Date "2024.02.06"]
[Round "3"]
[White "campochess"]
[Black "Supergiuly"]
[Result "1-0"]
[WhiteElo "2097"]
[BlackElo "2336"]
[TimeControl "180+1"]
[EndTime "14:27:26 PST"]
[Termination "campochess won by resignation"]

1. Nf3 {[%clk 0:02:59.9]} 1... b6 {[%clk 0:02:56.4]} 2. e4 {[%clk 0:02:58.2]}
2... Bb7 {[%clk 0:02:56.1]} 3. Nc3 {[%clk 0:02:58.1]} 3... d6 {[%clk 0:02:54.9]}
4. d4 {[%clk 0:02:57.8]} 4... g6 {[%clk 0:02:54.4]} 5. Bb5+ {[%clk 0:02:56.9]}
5... Nd7 {[%clk 0:02:52.9]} 6. Be3 {[%clk 0:02:52.3]} 6... a6 {[%clk 0:02:52.5]}
7. Bxd7+ {[%clk 0:02:49.6]} 7... Qxd7 {[%clk 0:02:52.3]} 8. O-O {[%clk
0:02:49.5]} 8... Bg7 {[%clk 0:02:52.3]} 9. Qd2 {[%clk 0:02:48.3]} 9... e6 {[%clk
0:02:51.3]} 10. Rfe1 {[%clk 0:02:44.9]} 10... Ne7 {[%clk 0:02:50.8]} 11. Bh6
{[%clk 0:02:41.1]} 11... O-O {[%clk 0:02:44.9]} 12. Bxg7 {[%clk 0:02:31.2]}
12... Kxg7 {[%clk 0:02:45.8]} 13. Qg5 {[%clk 0:02:30.2]} 13... h6 {[%clk
0:02:42.4]} 14. Qg3 {[%clk 0:02:29.9]} 14... c5 {[%clk 0:02:30.2]} 15. Rad1
{[%clk 0:02:28.3]} 15... Qc6 {[%clk 0:02:01.6]} 16. dxc5 {[%clk 0:02:25]} 16...
dxc5 {[%clk 0:02:00.7]} 17. Rd6 {[%clk 0:02:20.3]} 17... Qc7 {[%clk 0:01:48.6]}
18. Red1 {[%clk 0:02:20]} 18... Nc6 {[%clk 0:01:33.9]} 19. h4 {[%clk 0:02:05.9]}
19... Kh7 {[%clk 0:01:27.6]} 20. h5 {[%clk 0:02:04.7]} 20... g5 {[%clk
0:01:14.4]} 21. e5 {[%clk 0:01:49.2]} 21... Rfd8 {[%clk 0:01:02]} 22. Ne4 {[%clk
0:01:48.3]} 22... Ne7 {[%clk 0:00:49.1]} 23. Nf6+ {[%clk 0:01:38.2]} 23... Kh8
{[%clk 0:00:48.9]} 24. Nxg5 {[%clk 0:01:35.8]} 24... Nf5 {[%clk 0:00:38.5]} 25.
Nxf7+ {[%clk 0:01:35.7]} 25... Qxf7 {[%clk 0:00:29.9]} 26. Rxd8+ {[%clk
0:01:35.4]} 26... Qf8 {[%clk 0:00:29.6]} 27. Qg6 {[%clk 0:01:28.8]} 1-0

[Event "Late-Titled-Tuesday-Blitz-February-06-2024"]
[Site "Chess.com"]
[Date "2024.02.06"]
[Round "3"]
[White "Chessdude1987"]
[Black "zverr1"]
[Result "0-1"]
[WhiteElo "2294"]
[BlackElo "2566"]
[TimeControl "180+1"]
[EndTime "14:27:37 PST"]
[Termination "zverr1 won by resignation"]

1. e4 {[%clk 0:03:00.9]} 1... c5 {[%clk 0:02:58.3]} 2. Nf3 {[%clk 0:02:59.9]}
2... Nc6 {[%clk 0:02:58.2]} 3. d4 {[%clk 0:02:59.3]} 3... cxd4 {[%clk
0:02:59.1]} 4. Nxd4 {[%clk 0:02:59.7]} 4... g6 {[%clk 0:02:59.5]} 5. c4 {[%clk
0:02:56.8]} 5... Nf6 {[%clk 0:02:59.7]} 6. Be3 {[%clk 0:02:53.6]} 6... Nxe4
{[%clk 0:02:59.9]} 7. Bd3 {[%clk 0:02:46.6]} 7... Nf6 {[%clk 0:02:52.7]} 8. O-O
{[%clk 0:02:45]} 8... Bg7 {[%clk 0:02:52.2]} 9. Nc3 {[%clk 0:02:41.9]} 9... O-O
{[%clk 0:02:51.6]} 10. Nxc6 {[%clk 0:02:36.2]} 10... dxc6 {[%clk 0:02:50.1]} 11.
Qe2 {[%clk 0:02:34.4]} 11... Qc7 {[%clk 0:02:38.7]} 12. Rad1 {[%clk 0:02:31.7]}
12... e5 {[%clk 0:02:35.7]} 13. Bc5 {[%clk 0:02:27.9]} 13... Re8 {[%clk
0:02:34]} 14. Ne4 {[%clk 0:02:22.1]} 14... Nxe4 {[%clk 0:02:25.5]} 15. Bxe4
{[%clk 0:02:19.6]} 15... Be6 {[%clk 0:02:17.1]} 16. Bd6 {[%clk 0:02:17]} 16...
Qb6 {[%clk 0:02:11.1]} 17. c5 {[%clk 0:02:10.8]} 17... Qa5 {[%clk 0:02:09.4]}
18. a3 {[%clk 0:02:08.6]} 18... f5 {[%clk 0:01:49.6]} 19. Bb1 {[%clk 0:02:08.2]}
19... e4 {[%clk 0:01:48.1]} 20. Kh1 {[%clk 0:02:04.8]} 20... Rad8 {[%clk
0:01:40.8]} 21. Qe3 {[%clk 0:02:04.5]} 21... Bd5 {[%clk 0:01:38.5]} 22. b4
{[%clk 0:02:02.3]} 22... Qa4 {[%clk 0:01:33]} 23. Rd2 {[%clk 0:01:43.4]} 23...
Bf8 {[%clk 0:01:11]} 24. Bc7 {[%clk 0:01:33]} 24... Rd7 {[%clk 0:01:05.7]} 25.
Bf4 {[%clk 0:01:33]} 25... Red8 {[%clk 0:00:58.7]} 26. Rfd1 {[%clk 0:01:32.3]}
26... Be6 {[%clk 0:00:50.6]} 27. Bd6 {[%clk 0:01:31.5]} 27... Bxd6 {[%clk
0:00:43.2]} 28. cxd6 {[%clk 0:01:28.7]} 28... Rxd6 {[%clk 0:00:43.5]} 29. Bc2
{[%clk 0:01:15.6]} 29... Qxc2 {[%clk 0:00:37.2]} 30. Rxd6 {[%clk 0:01:09.1]}
30... Qxd1+ {[%clk 0:00:36.3]} 31. Rxd1 {[%clk 0:01:09.1]} 31... Rxd1+ {[%clk
0:00:37.2]} 0-1

[Event "Late-Titled-Tuesday-Blitz-February-06-2024"]
[Site "Chess.com"]
[Date "2024.02.06"]
[Round "3"]
[White "cthake"]
[Black "valeriocarnicelli"]
[Result "0-1"]
[WhiteElo "1808"]
[BlackElo "2531"]
[TimeControl "180+1"]
[EndTime "14:27:43 PST"]
[Termination "valeriocarnicelli won on time"]

1. c4 {[%clk 0:03:00.9]} 1... e6 {[%clk 0:02:59.7]} 2. Nc3 {[%clk 0:03:00.8]}
2... Nf6 {[%clk 0:03:00]} 3. g3 {[%clk 0:02:57.1]} 3... d5 {[%clk 0:02:59.8]} 4.
cxd5 {[%clk 0:02:55.8]} 4... exd5 {[%clk 0:02:59.4]} 5. Bg2 {[%clk 0:02:54]}
5... c6 {[%clk 0:02:59.9]} 6. d3 {[%clk 0:02:50.6]} 6... Be7 {[%clk 0:03:00.3]}
7. Bd2 {[%clk 0:02:41.5]} 7... O-O {[%clk 0:03:00.5]} 8. Nf3 {[%clk 0:02:41.5]}
8... Re8 {[%clk 0:02:59.3]} 9. O-O {[%clk 0:02:40.4]} 9... h6 {[%clk 0:02:59.5]}
10. Rb1 {[%clk 0:02:32.6]} 10... a5 {[%clk 0:02:59.7]} 11. Qc2 {[%clk
0:01:59.2]} 11... Na6 {[%clk 0:02:59.7]} 12. a3 {[%clk 0:01:56.9]} 12... b5
{[%clk 0:02:58.6]} 13. Ne5 {[%clk 0:01:46.2]} 13... Bb7 {[%clk 0:02:57.5]} 14.
d4 {[%clk 0:01:28.7]} 14... Rc8 {[%clk 0:02:57.3]} 15. Bh3 {[%clk 0:01:22.7]}
15... Rc7 {[%clk 0:02:56.7]} 16. Qf5 {[%clk 0:01:10.7]} 16... Bc8 {[%clk
0:02:53.7]} 17. Nxf7 {[%clk 0:00:38.8]} 17... Bxf5 {[%clk 0:02:50.6]} 18. Nxd8
{[%clk 0:00:38.8]} 18... Bxh3 {[%clk 0:02:51.2]} 19. Bf4 {[%clk 0:00:27.1]}
19... Bxd8 {[%clk 0:02:48.7]} 20. Bxc7 {[%clk 0:00:23.1]} 20... Bxc7 {[%clk
0:02:46.4]} 21. Rfe1 {[%clk 0:00:21.8]} 21... a4 {[%clk 0:02:40.8]} 22. e3
{[%clk 0:00:20.5]} 22... Ba5 {[%clk 0:02:39.2]} 23. Rec1 {[%clk 0:00:17.9]}
23... Bf5 {[%clk 0:02:37.3]} 24. Ra1 {[%clk 0:00:17.1]} 24... Bd3 {[%clk
0:02:34.8]} 25. Nd1 {[%clk 0:00:15.7]} 25... Bc4 {[%clk 0:02:33.8]} 26. Nc3
{[%clk 0:00:14.8]} 26... Ne4 {[%clk 0:02:32.6]} 27. Nxe4 {[%clk 0:00:14.6]}
27... Rxe4 {[%clk 0:02:33.5]} 28. Kg2 {[%clk 0:00:14]} 28... Nc7 {[%clk
0:02:32.6]} 29. Kf3 {[%clk 0:00:14]} 29... g5 {[%clk 0:02:31.6]} 30. g4 {[%clk
0:00:11.6]} 30... Kg7 {[%clk 0:02:31.3]} 31. h3 {[%clk 0:00:11.8]} 31... Kg6
{[%clk 0:02:31.4]} 32. Rh1 {[%clk 0:00:08.7]} 32... Ne8 {[%clk 0:02:29.2]} 33.
h4 {[%clk 0:00:08.8]} 33... Nf6 {[%clk 0:02:29.1]} 34. hxg5 {[%clk 0:00:05.1]}
34... hxg5 {[%clk 0:02:28.8]} 35. Rh8 {[%clk 0:00:05]} 35... Rxg4 {[%clk
0:02:17.6]} 36. Rc8 {[%clk 0:00:04.3]} 36... Rh4 {[%clk 0:02:10.8]} 37. Rxc6
{[%clk 0:00:04.1]} 37... Bd3 {[%clk 0:02:04]} 38. Rg1 {[%clk 0:00:03.1]} 38...
Kf5 {[%clk 0:01:55.3]} 0-1